Workbook

Sheet Regnskab Q4 2023
A1: Produkt ID | B1: Produktnavn | C1: Kategori | D1: Pris | E1: Antal solgt | F1: Profit
A2: 101 | B2: Lego Classic Building Bricks | C2: Byggeklodser | D2: 1199 | E2: 500 | F2: =data[[#This Row],[Pris]]*data[[#This Row],[Antal solgt]] -> 599500
A3: 102 | B3: Barbie Dreamhouse | C3: Dukkehuse | D3: 1999 | E3: 200 | F3: =data[[#This Row],[Pris]]*data[[#This Row],[Antal solgt]] -> 399800
A4: 103 | B4: Nerf N-Strike Elite Blaster | C4: Nerf | D4: 299 | E4: 800 | F4: =data[[#This Row],[Pris]]*data[[#This Row],[Antal solgt]] -> 239200
A5: 104 | B5: Hot Wheels Ultimate Garage | C5: Biler og køretøjer | D5: 449 | E5: 350 | F5: =data[[#This Row],[Pris]]*data[[#This Row],[Antal solgt]] -> 157150
A6: 105 | B6: Paw Patrol Adventure Bay Playset | C6: Paw Patrol | D6: 199 | E6: 300 | F6: =data[[#This Row],[Pris]]*data[[#This Row],[Antal solgt]] -> 59700
A7: 106 | B7: Frozen II Elsa Doll | C7: Disney-figurer | D7: 299 | E7: 600 | F7: =data[[#This Row],[Pris]]*data[[#This Row],[Antal solgt]] -> 179400
A8: 107 | B8: Transformers Optimus Prime Action Figure | C8: Action-figurer | D8: 99 | E8: 400 | F8: =data[[#This Row],[Pris]]*data[[#This Row],[Antal solgt]] -> 39600
A9: 108 | B9: Monopoly Classic Board Game | C9: Brætspil | D9: 249 | E9: 700 | F9: =data[[#This Row],[Pris]]*data[[#This Row],[Antal solgt]] -> 174300
A10: 109 | B10: Teddy Bear Plush Toy | C10: Bamser | D10: 149 | E10: 1000 | F10: =data[[#This Row],[Pris]]*data[[#This Row],[Antal solgt]] -> 149000
A11: 110 | B11: Xbox Series X Game Console | C11: Spilkonsoller | D11: 4999 | E11: 150 | F11: =data[[#This Row],[Pris]]*data[[#This Row],[Antal solgt]] -> 749850
A12: 111 | B12: LEGO Technic Excavator | C12: Byggeklodser | D12: 1499 | E12: 450 | F12: =data[[#This Row],[Pris]]*data[[#This Row],[Antal solgt]] -> 674550
A13: 112 | B13: American Girl Doll | C13: Legetøjsdukker | D13: 199 | E13: 250 | F13: =data[[#This Row],[Pris]]*data[[#This Row],[Antal solgt]] -> 49750
A14: 113 | B14: Nintendo Switch Lite | C14: Spilkonsoller | D14: 1999 | E14: 180 | F14: =data[[#This Row],[Pris]]*data[[#This Row],[Antal solgt]] -> 359820
A15: 114 | B15: Fisher-Price Baby Swing | C15: Babylegetøj | D15: 299 | E15: 400 | F15: =data[[#This Row],[Pris]]*data[[#This Row],[Antal solgt]] -> 119600
A16: 115 | B16: Harry Potter Wizard Chess Set | C16: Brætspil | D16: 399 | E16: 300 | F16: =data[[#This Row],[Pris]]*data[[#This Row],[Antal solgt]] -> 119700
A17: 116 | B17: Marvel Avengers Action Figures | C17: Action-figurer | D17: 199 | E17: 800 | F17: =data[[#This Row],[Pris]]*data[[#This Row],[Antal solgt]] -> 159200
A18: 117 | B18: Barbie Fashion Doll | C18: Mode og tilbehør | D18: 299 | E18: 700 | F18: =data[[#This Row],[Pris]]*data[[#This Row],[Antal solgt]] -> 209300
A19: 118 | B19: Little Tikes Cozy Coupe | C19: Ridetøj | D19: 499 | E19: 600 | F19: =data[[#This Row],[Pris]]*data[[#This Row],[Antal solgt]] -> 299400
A20: 119 | B20: LEGO Star Wars Millennium Falcon | C20: Byggeklodser | D20: 2499 | E20: 200 | F20: =data[[#This Row],[Pris]]*data[[#This Row],[Antal solgt]] -> 499800
A21: 120 | B21: My Little Pony Playset | C21: My Little Pony | D21: 399 | E21: 500 | F21: =data[[#This Row],[Pris]]*data[[#This Row],[Antal solgt]] -> 199500
A22: 121 | B22: Hot Wheels Track Builder Set | C22: Biler og køretøjer | D22: 349 | E22: 750 | F22: =data[[#This Row],[Pris]]*data[[#This Row],[Antal solgt]] -> 261750
A23: 122 | B23: Fisher-Price Laugh & Learn Puppy | C23: Babylegetøj | D23: 199 | E23: 1200 | F23: =data[[#This Row],[Pris]]*data[[#This Row],[Antal solgt]] -> 238800
A24: 123 | B24: Play-Doh Fun Factory | C24: Modellervoks | D24: 149 | E24: 1000 | F24: =data[[#This Row],[Pris]]*data[[#This Row],[Antal solgt]] -> 149000
A25: 124 | B25: VTech Smart Shots Sports Center | C25: Læring og leg | D25: 399 | E25: 400 | F25: =data[[#This Row],[Pris]]*data[[#This Row],[Antal solgt]] -> 159600
A26: 125 | B26: Pikachu Plush Toy | C26: Pokemon | D26: 249 | E26: 300 | F26: =data[[#This Row],[Pris]]*data[[#This Row],[Antal solgt]] -> 74700
A27: 126 | B27: Uno Card Game | C27: Brætspil | D27: 79 | E27: 1500 | F27: =data[[#This Row],[Pris]]*data[[#This Row],[Antal solgt]] -> 118500
A28: 127 | B28: Minnie Mouse Bowtique Cash Register | C28: Læring og leg | D28: 299 | E28: 250 | F28: =data[[#This Row],[Pris]]*data[[#This Row],[Antal solgt]] -> 74750
A29: 128 | B29: LeapFrog LeapPad Learning Tablet | C29: Læring og leg | D29: 799 | E29: 200 | F29: =data[[#This Row],[Pris]]*data[[#This Row],[Antal solgt]] -> 159800
A30: 129 | B30: Hot Wheels Monster Trucks | C30: Biler og køretøjer | D30: 199 | E30: 800 | F30: =data[[#This Row],[Pris]]*data[[#This Row],[Antal solgt]] -> 159200
A31: 130 | B31: Fisher-Price Rock 'n Play Sleeper | C31: Babylegetøj | D31: 599 | E31: 300 | F31: =data[[#This Row],[Pris]]*data[[#This Row],[Antal solgt]] -> 179700
A32: 131 | B32: LEGO Friends Heartlake City | C32: Byggeklodser | D32: 699 | E32: 400 | F32: =data[[#This Row],[Pris]]*data[[#This Row],[Antal solgt]] -> 279600
A33: 132 | B33: Barbie Ken Doll | C33: Dukker | D33: 199 | E33: 600 | F33: =data[[#This Row],[Pris]]*data[[#This Row],[Antal solgt]] -> 119400
A34: 133 | B34: Playmobil Pirate Ship | C34: Playmobil | D34: 249 | E34: 250 | F34: =data[[#This Row],[Pris]]*data[[#This Row],[Antal solgt]] -> 62250
A35: 134 | B35: Nintendo Switch Pro Controller | C35: Spilkonsoller | D35: 999 | E35: 180 | F35: =data[[#This Row],[Pris]]*data[[#This Row],[Antal solgt]] -> 179820
A36: 135 | B36: Polly Pocket Compact Playset | C36: Polly Pocket | D36: 149 | E36: 700 | F36: =data[[#This Row],[Pris]]*data[[#This Row],[Antal solgt]] -> 104300
A37: 136 | B37: Baby Einstein Take Along Tunes | C37: Babylegetøj | D37: 99 | E37: 1200 | F37: =data[[#This Row],[Pris]]*data[[#This Row],[Antal solgt]] -> 118800
A38: 137 | B38: Melissa & Doug Wooden Building Blocks | C38: Trælegetøj | D38: 349 | E38: 500 | F38: =data[[#This Row],[Pris]]*data[[#This Row],[Antal solgt]] -> 174500
A39: 138 | B39: Transformers Bumblebee Action Figure | C39: Action-figurer | D39: 249 | E39: 450 | F39: =data[[#This Row],[Pris]]*data[[#This Row],[Antal solgt]] -> 112050
A40: 139 | B40: Disney Princess Royal Carriage | C40: Disney-figurer | D40: 399 | E40: 350 | F40: =data[[#This Row],[Pris]]*data[[#This Row],[Antal solgt]] -> 139650
A41: 140 | B41: L.O.L. Surprise! Dolls | C41: L.O.L. Surprise! | D41: 129 | E41: 800 | F41: =data[[#This Row],[Pris]]*data[[#This Row],[Antal solgt]] -> 103200
A42: 141 | B42: VTech KidiZoom Camera | C42: Læring og leg | D42: 499 | E42: 300 | F42: =data[[#This Row],[Pris]]*data[[#This Row],[Antal solgt]] -> 149700
A43: 142 | B43: Sesame Street Elmo Plush Toy | C43: Sesame Street | D43: 199 | E43: 600 | F43: =data[[#This Row],[Pris]]*data[[#This Row],[Antal solgt]] -> 119400
A44: 143 | B44: Crayola Inspiration Art Case | C44: Kreativt legetøj | D44: 199 | E44: 700 | F44: =data[[#This Row],[Pris]]*data[[#This Row],[Antal solgt]] -> 139300
A45: 144 | B45: Beyblade Burst Battle Set | C45: Beyblade | D45: 399 | E45: 200 | F45: =data[[#This Row],[Pris]]*data[[#This Row],[Antal solgt]] -> 79800
A46: 145 | B46: FurReal Friends Ricky the Trick-Lovin' Pup | C46: Interaktivt legetøj | D46: 129 | E46: 150 | F46: =data[[#This Row],[Pris]]*data[[#This Row],[Antal solgt]] -> 19350
A47: 146 | B47: LEGO City Police Station | C47: Byggeklodser | D47: 999 | E47: 250 | F47: =data[[#This Row],[Pris]]*data[[#This Row],[Antal solgt]] -> 249750
A48: 147 | B48: Mattel Games Pictionary | C48: Brætspil | D48: 199 | E48: 400 | F48: =data[[#This Row],[Pris]]*data[[#This Row],[Antal solgt]] -> 79600
A49: 148 | B49: PJ Masks Headquarters Playset | C49: PJ Masks | D49: 399 | E49: 300 | F49: =data[[#This Row],[Pris]]*data[[#This Row],[Antal solgt]] -> 119700
A50: 149 | B50: Hot Wheels Criss Cross Crash Track Set | C50: Biler og køretøjer | D50: 499 | E50: 350 | F50: =data[[#This Row],[Pris]]*data[[#This Row],[Antal solgt]] -> 174650
A51: 150 | B51: VTech Go! Go! Smart Wheels Race Car | C51: VTech | D51: 399 | E51: 1200 | F51: =data[[#This Row],[Pris]]*data[[#This Row],[Antal solgt]] -> 478800
E53: I alt | F53: =SUM(data[Profit]) -> 10017540
